fUST/lending_fUST_20240424
["ID","MTS","AMOUNT","RATE_DAILY","PERIOD"]
[323411982,1713973838726,-200.77286391,0.00011097,2]
[323411983,1713973838736,-526.34381075,0.00011097,2]
[323411984,1713973838744,-154.8767742,0.00011097,2]
[323411985,1713973838754,-203.54323971,0.00011097,2]
[323411986,1713973838764,-154.84515485,0.00011097,2]
[323411987,1713973838773,-204.27856848,0.00011097,2]
[323411988,1713973838782,-977.80653021,0.00011097,2]
[323411989,1713973838791,-240.5177946,0.00011097,2]
[323411990,1713973838800,-459.70738052,0.00011097,2]
[323411991,1713973838810,-155.51855235,0.00011097,2]
[323411992,1713973838819,-154.89463122,0.00011102,2]
[323411993,1713973838828,-154.84515485,0.00011102,2]
[323411994,1713973838838,-154.98551453,0.00011102,2]
[323411995,1713973838846,-211.72809482,0.00011179,2]
[323411996,1713973838856,-211.72809482,0.00011322,2]
[323411997,1713973839020,-29313.88621635,0.00011386,2]
[323411998,1713973839035,-214.2471723,0.00011431,2]
[323411999,1713973839045,-658.9994999,0.00011431,2]
[323412000,1713973839054,-211.72809482,0.00011464,2]
[323412001,1713973839063,-211.72809482,0.00011606,2]
[323412002,1713973839073,-211.72809482,0.00011748,2]
[323412003,1713973839083,-211.72809482,0.0001189,2]
[323412004,1713973839095,-211.72809482,0.00012033,2]
[323412005,1713973839105,-420.0,0.00012088,2]
[323412006,1713973839118,-420.0,0.000121,2]
[323412007,1713973839128,-1016.53700423,0.00012122,2]
[323412008,1713973839138,-211.72809482,0.00012175,2]
[323412009,1713973839148,-211.72809482,0.00012317,2]
[323412010,1713973839159,-264.28434805,0.00012393,2]
[323412011,1713973839170,-309.06975114,0.00012401,7]
[323412012,1713973839182,-211.72809482,0.00012459,2]
[323412013,1713973839192,-211.72809482,0.00012602,2]
[323412014,1713973839202,-211.72809482,0.00012744,2]
[323412015,1713973839213,-211.72809482,0.00012886,2]
[323412016,1713973839222,-1666.82507461,0.000129,2]
[323412017,1713973839233,-211.72809482,0.00013028,2]
[323412018,1713973839243,-211.72809482,0.0001317,2]
[323412019,1713973839253,-306.0,0.00013252,2]
[323412020,1713973839265,-306.0,0.00013252,2]
[323412021,1713973839274,-587.0,0.00013283,2]
[323412022,1713973839284,-587.0,0.0001331,2]
[323412023,1713973839293,-211.72809482,0.00013313,2]
[323412024,1713973839302,-211.72809482,0.00013455,2]
[323412025,1713973839311,-1666.82507459,0.00013479,2]
[323412026,1713973839321,-211.72809482,0.00013597,2]
[323412027,1713973839331,-1490.03151355,0.00013694,2]
[323412028,1713973839341,-539.74228579,0.00013694,2]
[323412029,1713973839351,-154.93472149,0.00013694,2]
[323412030,1713973839360,-549.48258406,0.00013694,2]
[323412031,1713973839374,-1877.77097996,0.00013694,2]
[323412032,1713973839383,-1484.39666007,0.00013697,2]
[323412033,1713973839393,-15898.31,0.00013698,2]
[323412034,1713973839403,-1360.41993,0.00013699,2]
[323412035,1713973839413,-158.71735789,0.00013748,2]
[323412036,1713973839423,-323.93421365,0.00013748,2]
[323412037,1713973839432,-155.83554878,0.00013748,2]
[323412038,1713973839441,-153.0,0.00013764,2]
[323412039,1713973839451,-153.0,0.00013764,2]
[323412040,1713973839461,-153.0,0.00013764,2]
[323412041,1713973839471,-205.95417978,0.00013797,2]
[323412042,1713973839480,-244.1303562,0.00013798,2]
[323412043,1713973839489,-155.51957365,0.00013799,2]
[323412044,1713973839499,-1301.60284295,0.000138,2]
[323412045,1713973839509,-153.0,0.000138,2]
[323412046,1713973839518,-153.0,0.000138,2]
[323412047,1713973839527,-153.0,0.000138,2]
[323412048,1713973839537,-1000.0,0.00013806,2]
[323412049,1713973839546,-346.66208078,0.00013813,2]
[323412050,1713973839556,-157.6761409,0.00013813,2]
[323412051,1713973839565,-1322.83760046,0.00013814,2]
[323412052,1713973839575,-309.62843966,0.00013814,2]
[323412053,1713973839585,-1000.0,0.00013815,2]
[323412054,1713973839595,-306.0,0.00013836,2]
[323412055,1713973839604,-240.6875281,0.00013836,2]
[323412056,1713973839613,-153.0,0.00013836,2]
[323412057,1713973839626,-153.0,0.00013836,2]
[323412058,1713973839636,-515.77370903,0.00013891,2]
[323412059,1713973839645,-153.0,0.000139,2]
[323412060,1713973839655,-2434.36343484,0.00013916,2]
[323412061,1713973839664,-199.59399303,0.00013916,2]
[323412062,1713973839674,-174.1146423,0.00013916,2]
[323412063,1713973839684,-270.94438015,0.00013916,2]
[323412064,1713973839695,-807.59864269,0.00013917,2]
[323412065,1713973839705,-1000.0,0.00013918,2]
[323412066,1713973839714,-314.20300914,0.00013958,2]
[323412067,1713973839723,-15898.31,0.00013972,2]
[323412068,1713973839734,-1000.0,0.00013993,2]
[323412069,1713973839745,-638.01106262,0.00014,2]
[323412070,1713973839754,-927.87368973,0.00014,2]
[323412071,1713973839765,-153.0,0.00014011,2]
[323412072,1713973839774,-306.0,0.00014011,2]
[323412073,1713973839784,-153.0,0.00014011,2]
[323412074,1713973839793,-153.0,0.00014011,2]
[323412075,1713973839802,-153.0,0.00014052,2]
[323412076,1713973839812,-417.0,0.00014098,2]
[323412077,1713973839821,-211.0,0.00014098,2]
[323412078,1713973839830,-221.778,0.00014098,2]
[323412079,1713973839839,-365.377671,0.00014246,2]
[323412080,1713973839848,-365.377671,0.00014246,2]
[323412081,1713973839857,-973.901536,0.00014246,2]
[323412082,1713973839868,-322.274581,0.00014246,2]
[323412083,1713973839877,-973.901536,0.00014246,2]
[323412084,1713973839887,-322.274581,0.00014246,2]
[323412085,1713973839898,-15898.31,0.00014246,2]
[323412086,1713973839907,-306.0,0.00014469,2]
[323412087,1713973839917,-153.0,0.00014469,2]
[323412089,1713973839925,-153.0,0.00014469,2]
[323412090,1713973839935,-151.0,0.0001452,2]
[323412091,1713973839945,-151.0,0.0001452,2]
[323412092,1713973839954,-15898.31,0.0001452,2]
[323412093,1713973839963,-644.56307925,0.00014552,2]
[323412094,1713973839973,-823.0,0.00014597,2]
[323412095,1713973839982,-823.0,0.00014641,2]
[323412096,1713973839991,-153.0,0.00014658,2]
[323412097,1713973840001,-153.0,0.00014658,2]
[323412098,1713973840010,-153.0,0.00014658,2]
[323412099,1713973840019,-153.0,0.00014658,2]
[323412100,1713973840028,-153.0,0.00014658,2]
[323412101,1713973840038,-153.0,0.00014658,2]
[323412102,1713973840047,-153.0,0.00014658,2]
[323412103,1713973840057,-153.0,0.00014658,2]
[323412104,1713973840066,-411.3285172,0.00014658,2]
[323412105,1713973840076,-153.0,0.00014707,2]
[323412107,1713973840089,-15898.31,0.00014794,2]
[323412108,1713973840098,-719.948416,0.00014794,2]
[323412109,1713973840108,-719.948416,0.00014794,2]
[323412110,1713973840119,-306.0,0.00014802,2]
[323412111,1713973840129,-151.0,0.000149,2]
[323412112,1713973840138,-151.0,0.000149,2]
[323412113,1713973840147,-151.0,0.000149,2]
[323412114,1713973840160,-152.664016,0.000149,2]
[323412115,1713973840170,-152.664016,0.000149,2]
[323412116,1713973840180,-154.98902244,0.00014997,2]
[323412117,1713973840189,-170.43605535,0.00014997,2]
[323412118,1713973840199,-254.05667354,0.00014999,2]
[323412119,1713973840208,-157.06659545,0.00015,2]
[323412120,1713973840217,-938.69803003,0.00015,2]
[323412121,1713973840227,-628.29006624,0.00015,2]
[323412123,1713973840236,-2776.29930889,0.00015,2]
[323412124,1713973840245,-154.84515485,0.00015,2]
[323412126,1713973840254,-1676.10589151,0.00015,2]
[323412128,1713973840263,-154.84515485,0.00015,2]
[323412130,1713973840273,-312.66661178,0.00015,2]
[323412132,1713973840282,-2099.79903615,0.00015,2]
[323412134,1713973840292,-50000.0,0.00015,2]
[323412136,1713973840301,-152.664016,0.00015,2]
[323412138,1713973840311,-152.664016,0.00015,2]
[323412140,1713973840320,-151.0,0.00015,2]
[323412141,1713973840329,-151.0,0.00015,2]
[323412143,1713973840339,-365.377671,0.00015,2]
[323412145,1713973840348,-365.377671,0.00015,2]
[323412146,1713973840358,-365.377671,0.00015,2]
[323412147,1713973840368,-365.377671,0.00015,2]
[323412148,1713973840377,-973.901536,0.00015,2]
[323412149,1713973840385,-973.901536,0.00015,2]
[323412150,1713973840394,-322.274581,0.00015,2]
[323412151,1713973840403,-322.274581,0.00015,2]
[323412152,1713973840412,-973.901536,0.00015,2]
[323412153,1713973840421,-973.901536,0.00015,2]
[323412154,1713973840430,-322.274581,0.00015,2]
[323412155,1713973840439,-322.274581,0.00015,2]
[323412156,1713973840448,-151.0,0.00015,2]
[323412157,1713973840457,-151.0,0.00015,2]
[323412158,1713973840466,-151.0,0.00015,2]
[323412159,1713973840475,-151.0,0.00015,2]
[323412160,1713973840484,-719.948416,0.00015,2]
[323412161,1713973840492,-719.948416,0.00015,2]
[323412162,1713973840501,-15898.31,0.00015068,2]
[323412163,1713973840510,-621.22815396,0.0001528,2]
[323412164,1713973840519,-15898.31,0.00015342,2]
[323412165,1713973840527,-349.2475202,0.00015444,2]
[323412166,1713973840536,-153.0,0.00015462,2]
[323412167,1713973840545,-151.0,0.00015616,2]
[323412168,1713973840554,-151.0,0.00015616,2]
[323412169,1713973840563,-365.377671,0.00015616,2]
[323412170,1713973840572,-365.377671,0.00015616,2]
[323412171,1713973840581,-973.901536,0.00015616,2]
[323412172,1713973840590,-322.274581,0.00015616,2]
[323412173,1713973840599,-973.901536,0.00015616,2]
[323412174,1713973840607,-322.274581,0.00015616,2]
[323412175,1713973840618,-15898.31,0.00015616,2]
[323412176,1713973840628,-151.0,0.00015616,2]
[323412177,1713973840636,-151.0,0.00015616,2]
[323412178,1713973840645,-719.948416,0.00015616,2]
[323412179,1713973840654,-719.948416,0.00015616,2]
[323412180,1713973840663,-15898.31,0.0001589,2]
[323412181,1713973840673,-3286.06426541,0.000159,2]
[323412182,1713973840682,-41935.70705105,0.00015911,2]
[323412183,1713973840691,-151.0,0.00015911,2]
[323412184,1713973840700,-152.664016,0.00015911,2]
[323412185,1713973840708,-152.664016,0.00015911,2]
[323412186,1713973840718,-151.0,0.00015911,2]
[323412187,1713973840727,-151.0,0.00015911,2]
[323412188,1713973840736,-365.377671,0.00015911,2]
[323412189,1713973840745,-365.377671,0.00015911,2]
[323412190,1713973840754,-973.901536,0.00015911,2]
[323412191,1713973840763,-322.274581,0.00015911,2]
[323412192,1713973840772,-973.901536,0.00015911,2]
[323412193,1713973840783,-322.274581,0.00015911,2]
[323412194,1713973840793,-151.0,0.00015911,2]
[323412195,1713973840802,-271.19023,0.00015911,2]
[323412196,1713973840810,-719.948416,0.00015911,2]
[323412197,1713973840819,-719.948416,0.00015911,2]
[323412198,1713973840828,-15215.38422108,0.00016,2]
[323412199,1713973840837,-238.93971122,0.00016,2]
[323412200,1713973840846,-1152.0,0.0001604,2]
[323412202,1713973840855,-620.0614077,0.00016044,2]
[323412203,1713973840864,-1666.82507459,0.00016049,2]
[323412205,1713973840876,-1152.0,0.00016105,2]
[323412206,1713973840887,-150.0,0.0001611,2]
[323412208,1713973840897,-15898.31,0.00016164,2]
[323412209,1713973840906,-44444.0,0.00016177,2]
[323412211,1713973840916,-151.0,0.00016177,2]
[323412213,1713973840926,-151.0,0.00016177,2]
[323412215,1713973840935,-365.377671,0.00016177,2]
[323412217,1713973840945,-365.377671,0.00016177,2]
[323412218,1713973840954,-973.901536,0.00016177,2]
[323412219,1713973840968,-322.274581,0.00016177,2]
[323412220,1713973840977,-973.901536,0.00016177,2]
[323412221,1713973840989,-322.274581,0.00016177,2]
[323412222,1713973840999,-151.0,0.00016177,2]
[323412223,1713973841008,-719.948416,0.00016177,2]
[323412224,1713973841017,-719.948416,0.00016177,2]
[323412225,1713973841027,-20000.0,0.00016277,2]
[323412226,1713973841036,-151.0,0.00016277,2]
[323412227,1713973841046,-152.664016,0.00016277,2]
[323412228,1713973841055,-152.664016,0.00016277,2]
[323412229,1713973841064,-177.75,0.000163,2]
[323412230,1713973841074,-44146.31577629,0.000164,2]
[323412231,1713973841088,-151.0,0.000164,2]
[323412232,1713973841098,-214.517686,0.000164,2]
[323412233,1713973841108,-365.377671,0.000164,2]
[323412234,1713973841118,-365.377671,0.000164,2]
[323412235,1713973841128,-973.901536,0.000164,2]
[323412236,1713973841138,-322.274581,0.000164,2]
[323412237,1713973841148,-973.901536,0.000164,2]
[323412238,1713973841160,-322.274581,0.000164,2]
[323412239,1713973841170,-151.0,0.000164,2]
[323412240,1713973841180,-719.948416,0.000164,2]
[323412241,1713973841190,-719.948416,0.000164,2]
[323412242,1713973841200,-228.59475437,0.00016428,2]
[323412243,1713973841220,-5000.0,0.00016433,2]
[323412244,1713973841231,-151.0,0.00016433,2]
[323412245,1713973841241,-152.664016,0.00016433,2]
[323412246,1713973841252,-152.664016,0.00016433,2]
[323412247,1713973841262,-194.30609563,0.00016436,2]
[323412248,1713973841272,-500.0,0.00016438,2]
[323412249,1713973841282,-500.0,0.00016438,2]
[323412250,1713973841291,-500.0,0.00016438,2]
[323412251,1713973841301,-500.0,0.00016438,2]
[323412252,1713973841311,-500.0,0.00016438,2]
[323412253,1713973841321,-500.0,0.00016438,2]
[323412254,1713973841331,-218.09013133,0.00016438,2]
[323412255,1713973841342,-501.36285965,0.00016438,2]
[323412256,1713973841351,-500.0,0.00016438,2]
[323412257,1713973841361,-500.0,0.00016438,2]
[323412258,1713973841372,-500.84507688,0.00016438,2]
[323412259,1713973841382,-500.0,0.00016438,2]
[323412260,1713973841392,-500.0,0.00016438,2]
[323412261,1713973841402,-500.0,0.00016438,2]
[323412262,1713973841412,-500.0,0.00016438,2]
[323412263,1713973841422,-500.0,0.00016438,2]
[323412264,1713973841431,-500.0,0.00016438,2]
[323412265,1713973841441,-1024.92,0.00016438,2]
[323412266,1713973841451,-500.0,0.00016438,2]
[323412267,1713973841461,-500.0,0.00016438,2]
[323412268,1713973841471,-503.09299643,0.00016438,2]
[323412269,1713973841481,-500.0,0.00016438,2]
[323412270,1713973841490,-599.64584797,0.00016438,2]
[323412271,1713973841500,-500.76294847,0.00016438,2]
[323412272,1713973841510,-500.0,0.00016438,2]
[323412273,1713973841520,-654.09,0.00016438,2]
[323412274,1713973841529,-500.0,0.00016438,2]
[323412275,1713973841540,-500.0,0.00016438,2]
[323412276,1713973841550,-500.0,0.00016438,2]
[323412277,1713973841561,-500.0,0.00016438,2]
[323412278,1713973841571,-637.62,0.00016438,2]
[323412279,1713973841581,-610.42281034,0.00016438,2]
[323412280,1713973841591,-500.0,0.00016438,2]
[323412281,1713973841601,-500.0,0.00016438,2]
[323412282,1713973841611,-500.0,0.00016438,2]
[323412283,1713973841623,-502.72103971,0.00016438,2]
[323412284,1713973841633,-541.66,0.00016438,2]
[323412285,1713973841643,-506.66663132,0.00016438,2]
[323412286,1713973841653,-500.0,0.00016438,2]
[323412287,1713973841664,-500.0,0.00016438,2]
[323412288,1713973841674,-500.83165613,0.00016438,2]
[323412289,1713973841684,-500.0,0.00016438,2]
[323412290,1713973841694,-500.0,0.00016438,2]
[323412291,1713973841704,-500.0,0.00016438,2]
[323412292,1713973841713,-500.0,0.00016438,2]
[323412293,1713973841723,-500.0,0.00016438,2]
[323412294,1713973841732,-500.0,0.00016438,2]
[323412295,1713973841742,-502.04529994,0.00016438,2]
[323412296,1713973841752,-500.0,0.00016438,2]
[323412297,1713973841762,-500.0,0.00016438,2]
[323412298,1713973841771,-500.0,0.00016438,2]
[323412299,1713973841781,-500.0,0.00016438,2]
[323412300,1713973841790,-500.0,0.00016438,2]
[323412301,1713973841800,-610.11017992,0.00016438,2]
[323412302,1713973841809,-500.0,0.00016438,2]
[323412303,1713973841818,-500.0,0.00016438,2]
[323412304,1713973841828,-500.0,0.00016438,2]
[323412305,1713973842013,-500.0,0.00016438,2]
[323412306,1713973842023,-637.46,0.00016438,2]
[323412307,1713973842033,-500.0,0.00016438,2]
[323412308,1713973842043,-500.0,0.00016438,2]
[323412309,1713973842053,-1841.01,0.00016438,2]
[323412310,1713973842062,-877.6,0.00016438,2]
[323412311,1713973842072,-500.0,0.00016438,2]
[323412312,1713973842082,-500.0,0.00016438,2]
[323412313,1713973842096,-500.0,0.00016438,2]
[323412314,1713973842105,-500.0,0.00016438,2]
[323412315,1713973842114,-500.0,0.00016438,2]
[323412316,1713973842127,-783.92,0.00016438,2]
[323412317,1713973842136,-500.0,0.00016438,2]
[323412318,1713973842145,-204.36487611,0.00016438,2]
[323412319,1713973842154,-501.64298256,0.00016438,2]
[323412320,1713973842165,-500.0,0.00016438,2]
[323412321,1713973842175,-639.1,0.00016438,2]
[323412322,1713973842184,-500.0,0.00016438,2]
[323412323,1713973842194,-500.0,0.00016438,2]
[323412324,1713973842203,-786.08,0.00016438,2]
[323412325,1713973842212,-500.0,0.00016438,2]
[323412326,1713973842222,-500.0,0.00016438,2]
[323412327,1713973842231,-500.0,0.00016438,2]
[323412328,1713973842240,-500.0,0.00016438,2]
[323412329,1713973842249,-500.0,0.00016438,2]
[323412330,1713973842258,-500.0,0.00016438,2]
[323412331,1713973842268,-156.26236391,0.00016438,2]
[323412333,1713973842277,-500.0,0.00016438,2]
[323412334,1713973842286,-500.0,0.00016438,2]
[323412335,1713973842296,-500.0,0.00016438,2]
[323412336,1713973842305,-500.0,0.00016438,2]
[323412337,1713973842315,-500.0,0.00016438,2]
[323412338,1713973842324,-1310.72,0.00016438,2]
[323412339,1713973842333,-776.68,0.00016438,2]
[323412340,1713973842342,-3073.94,0.00016438,2]
[323412341,1713973842351,-500.0,0.00016438,2]
[323412342,1713973842361,-500.0,0.00016438,2]
[323412343,1713973842372,-500.0,0.00016438,2]
[323412344,1713973842381,-500.0,0.00016438,2]
[323412345,1713973842391,-500.0,0.00016438,2]
[323412346,1713973842401,-500.0,0.00016438,2]
[323412347,1713973842410,-500.0,0.00016438,2]
[323412348,1713973842419,-500.0,0.00016438,2]
[323412349,1713973842428,-500.0,0.00016438,2]
[323412350,1713973842438,-500.6276836,0.00016438,2]
[323412351,1713973842447,-500.0,0.00016438,2]
[323412352,1713973842458,-500.0,0.00016438,2]
[323412353,1713973842467,-500.0,0.00016438,2]
[323412354,1713973842476,-1655.34,0.00016438,2]
[323412355,1713973842486,-500.0,0.00016438,2]
[323412356,1713973842495,-501.49946375,0.00016438,2]
[323412357,1713973842504,-939.9,0.00016438,2]
[323412358,1713973842513,-500.0,0.00016438,2]
[323412360,1713973842522,-4954.95,0.00016438,2]
[323412361,1713973842532,-509.54472222,0.00016438,2]
[323412362,1713973842540,-500.0,0.00016438,2]
[323412363,1713973842550,-500.0,0.00016438,2]
[323412364,1713973842560,-500.0,0.00016438,2]
[323412365,1713973842570,-2682.8,0.00016438,2]
[323412366,1713973842579,-1209.51,0.00016438,2]
[323412368,1713973842589,-500.0,0.00016438,2]
[323412369,1713973842598,-507.9712587,0.00016438,2]
[323412370,1713973842607,-500.0,0.00016438,2]
[323412371,1713973842616,-818.79,0.00016438,2]
[323412372,1713973842628,-514.86978296,0.00016438,2]
[323412373,1713973842638,-500.0,0.00016438,2]
[323412374,1713973842647,-500.0,0.00016438,2]
[323412376,1713973842657,-500.0,0.00016438,2]
[323412378,1713973842666,-574.94789502,0.00016438,2]
[323412380,1713973842675,-500.0,0.00016438,2]
[323412382,1713973842684,-500.0,0.00016438,2]
[323412384,1713973842693,-500.0,0.00016438,2]
[323412386,1713973842703,-1113.86,0.00016438,2]
[323412388,1713973842713,-500.0,0.00016438,2]
[323412390,1713973842722,-505.92512138,0.00016438,2]
[323412392,1713973842731,-627.1,0.00016438,2]
[323412394,1713973842740,-250.76794677,0.00016438,2]
[323412396,1713973842749,-500.0,0.00016438,2]
[323412397,1713973842759,-550.62,0.00016438,2]
[323412399,1713973842768,-500.0,0.00016438,2]
[323412401,1713973842777,-509.99815414,0.00016438,2]
[323412403,1713973842786,-186.66324189,0.00016438,2]
[323412405,1713973842795,-480.80965386,0.00016438,2]
[323412407,1713973842805,-500.0,0.00016438,2]
[323412409,1713973842814,-254.89220478,0.00016438,2]
[323412411,1713973842823,-500.0,0.00016438,2]
[323412413,1713973842833,-500.0,0.00016438,2]
[323412415,1713973842842,-500.0,0.00016438,2]
[323412417,1713973842852,-500.0,0.00016438,2]
[323412419,1713973842862,-310.42600251,0.00016438,2]
[323412421,1713973842878,-500.0,0.00016438,2]
[323412423,1713973842888,-500.0,0.00016438,2]
[323412425,1713973842899,-882.83,0.00016438,2]
[323412428,1713973842909,-1098.08,0.00016438,2]
[323412430,1713973842918,-500.0,0.00016438,2]
[323412432,1713973842928,-745.36,0.00016438,2]
[323412434,1713973842938,-500.0,0.00016438,2]
[323412437,1713973842947,-500.0,0.00016438,2]
[323412439,1713973842956,-500.39097742,0.00016438,2]
[323412442,1713973842966,-500.6250133,0.00016438,2]
[323412445,1713973842975,-502.60297434,0.00016438,2]
[323412447,1713973842985,-500.0,0.00016438,2]
[323412450,1713973842995,-500.0,0.00016438,2]
[323412454,1713973843006,-500.0,0.00016438,2]
[323412457,1713973843016,-500.0,0.00016438,2]
[323412460,1713973843025,-500.0,0.00016438,2]
[323412463,1713973843035,-500.0,0.00016438,2]
[323412466,1713973843045,-500.0,0.00016438,2]
[323412469,1713973843054,-500.0,0.00016438,2]
[323412472,1713973843066,-560.07598979,0.00016438,2]
[323412475,1713973843076,-503.51866596,0.00016438,2]
[323412478,1713973843089,-500.0,0.00016438,2]
[323412481,1713973843099,-666.75,0.00016438,2]
[323412483,1713973843108,-500.0,0.00016438,2]
[323412486,1713973843118,-503.18383865,0.00016438,2]
[323412491,1713973843130,-500.0,0.00016438,2]
[323412494,1713973843139,-878.02,0.00016438,2]
[323412498,1713973843148,-525.44259505,0.00016438,2]
[323412503,1713973843157,-2175.21,0.00016438,2]
[323412508,1713973843168,-500.0,0.00016438,2]
[323412512,1713973843178,-500.0,0.00016438,2]
[323412516,1713973843187,-500.0,0.00016438,2]
[323412520,1713973843198,-500.0,0.00016438,2]
[323412524,1713973843207,-500.0,0.00016438,2]
[323412529,1713973843217,-500.0,0.00016438,2]
[323412531,1713973843226,-500.0,0.00016438,2]
[323412536,1713973843235,-500.0,0.00016438,2]
[323412542,1713973843244,-500.0,0.00016438,2]
[323412546,1713973843254,-500.0,0.00016438,2]
[323412549,1713973843263,-500.0,0.00016438,2]
[323412551,1713973843272,-500.0,0.00016438,2]
[323412553,1713973843281,-500.0,0.00016438,2]
[323412555,1713973843290,-478.12,0.00016438,2]
[323412557,1713973843300,-500.0,0.00016438,2]
[323412559,1713973843309,-500.0,0.00016438,2]
[323412561,1713973843318,-744.14,0.00016438,2]
[323412563,1713973843327,-500.0,0.00016438,2]
[323412565,1713973843336,-500.0,0.00016438,2]
[323412567,1713973843345,-500.0,0.00016438,2]
[323412569,1713973843355,-500.0,0.00016438,2]
[323412571,1713973843364,-500.0,0.00016438,2]
[323412573,1713973843375,-500.0,0.00016438,2]
[323412575,1713973843384,-500.0,0.00016438,2]
[323412577,1713973843393,-500.0,0.00016438,2]
[323412579,1713973843402,-501.63269683,0.00016438,2]
[323412581,1713973843411,-500.0,0.00016438,2]
[323412583,1713973843420,-1963.58,0.00016438,2]
[323412585,1713973843430,-500.0,0.00016438,2]
[323412587,1713973843439,-500.0,0.00016438,2]
[323412589,1713973843447,-500.0,0.00016438,2]
[323412591,1713973843456,-500.0,0.00016438,2]
[323412593,1713973843465,-952.39,0.00016438,2]
[323412595,1713973843474,-500.0,0.00016438,2]
[323412597,1713973843483,-500.0,0.00016438,2]
[323412599,1713973843492,-500.0,0.00016438,2]
[323412601,1713973843501,-493.77022189,0.00016438,2]
[323412603,1713973843511,-500.0,0.00016438,2]
[323412605,1713973843520,-500.0,0.00016438,2]
[323412607,1713973843529,-611.61229877,0.00016438,2]
[323412609,1713973843538,-500.0,0.00016438,2]
[323412611,1713973843547,-500.0,0.00016438,2]
[323412613,1713973843556,-500.0,0.00016438,2]
[323412615,1713973843566,-500.0,0.00016438,2]
[323412617,1713973843576,-1744.46,0.00016438,2]
[323412619,1713973843586,-883.68,0.00016438,2]
[323412621,1713973843595,-1642.42,0.00016438,2]
[323412623,1713973843604,-500.58805074,0.00016438,2]
[323412625,1713973843614,-613.48,0.00016438,2]
[323412627,1713973843624,-187.22870139,0.00016438,2]
[323412628,1713973843633,-500.0,0.00016438,2]
[323412630,1713973843643,-2192.71,0.00016438,2]
[323412632,1713973843652,-500.0,0.00016438,2]
[323412634,1713973843662,-500.0,0.00016438,2]
[323412636,1713973843672,-500.0,0.00016438,2]
[323412638,1713973843681,-619.04352911,0.00016438,2]
[323412640,1713973843691,-500.0,0.00016438,2]
[323412642,1713973843700,-500.0,0.00016438,2]
[323412644,1713973843710,-500.0,0.00016438,2]
[323412646,1713973843719,-500.0,0.00016438,2]
[323412648,1713973843728,-500.0,0.00016438,2]
[323412650,1713973843737,-628.76,0.00016438,2]
[323412652,1713973843746,-500.0,0.00016438,2]
[323412654,1713973843756,-609.68729219,0.00016438,2]
[323412656,1713973843765,-500.0,0.00016438,2]
[323412658,1713973843775,-500.52186241,0.00016438,2]
[323412660,1713973843785,-611.79,0.00016438,2]
[323412662,1713973843794,-500.0,0.00016438,2]
[323412664,1713973843803,-500.0,0.00016438,2]
[323412666,1713973843812,-201.00090847,0.00016438,2]
[323412668,1713973843823,-503.43849542,0.00016438,2]
[323412670,1713973843832,-500.0,0.00016438,2]
[323412673,1713973843841,-500.0,0.00016438,2]
[323412675,1713973843851,-500.0,0.00016438,2]
[323412677,1713973843860,-587.8,0.00016438,2]
[323412679,1713973843871,-500.0,0.00016438,2]
[323412681,1713973843880,-501.32989006,0.00016438,2]
[323412683,1713973843890,-500.0,0.00016438,2]